[Event "FIDE World Cadets GU12 2022"]
[Site "Batumi"]
[Date "2022.09.24"]
[Round "8.6"]
[White "Huseynli, Ayan"]
[Black "Aydogan, Arya"]
[Result "1/2-1/2"]
[ECO "D15"]
[WhiteElo "1572"]
[BlackElo "1489"]
[Annotator "NA RC COMBH"]
[PlyCount "174"]
[EventDate "2022.09.16"]
[EventType "swiss"]
[EventCountry "GEO"]
[SourceTitle "playchess.com"]
[Source "ChessBase"]
[SourceQuality "1"]
[TimeControl "5400+30"]

1. d4 {[%emt 0:01:00]} d5 {[%emt 0:01:00]} 2. e3 {[%emt 0:00:30]} Bf5 {[%emt 0:00:30]} 3. c4 {[%emt 0:00:30]} e6 {[%emt 0:00:30]} 4. Qb3 {[%emt 0:00:30]} b6 {[%emt 0:00:30]} 5. Nc3 {[%emt 0:00:00]} Nf6 {[%emt 0:03:30]} 6. Nf3 {[%emt 0:00:00]} c6 {[%emt 0:02:30]} 7. cxd5 {[%emt 0:01:30]} exd5 {[%emt 0:02:30]} 8. Bd2 {[%emt 0:02:30]} Bd6 {[%emt 0:01:30]} 9. Be2 {[%emt 0:00:30]} O-O {[%emt 0:03:30]} 10. O-O {[%emt 0:02:30]} Nbd7 {[%emt 0:02:30]} 11. Rac1 {[%emt 0:00:30]} Qe7 {[%emt 0:02:30]} 12. Ba6 {[%emt 0:06:30]} Nb8 {[%emt 0:03:30]} 13. Be2 {[%emt 0:01:30]} Nbd7 {[%emt 0:02:30]} 14. Nh4 {[%emt 0:03:30]} Be6 {[%emt 0:04:30]} 15. f4 {[%emt 0:03:30]} Ne4 {[%emt 0:02:30]} 16. Be1 {[%emt 0:02:30]} g6 {[%emt 0:08:30]} 17. Nxe4 {[%emt 0:03:30]} dxe4 {[%emt 0:00:30]} 18. Bc4 {[%emt 0:00:30]} Bxc4 {[%emt 0:00:30]} 19. Qxc4 {[%emt 0:00:30]} Rfc8 {[%emt 0:04:30]} 20. a4 {[%emt 0:14:30]} Kg7 {[%emt 0:03:30]} 21. f5 {[%emt 0:02:30]} Nf6 {[%emt 0:00:30]} 22. g3 {[%emt 0:07:30]} Nd5 {[%emt 0:03:30]} 23. Ng2 {[%emt 0:03:30]} Qg5 {[%emt 0:02:30]} 24. fxg6 {[%emt 0:02:30]} hxg6 {[%emt 0:00:30]} 25. Qe2 {[%emt 0:01:30]} Qh6 {[%emt 0:02:30]} 26. Nf4 {[%emt 0:01:30]} Bxf4 {[%emt 0:01:30]} 27. gxf4 {[%emt 0:00:00]} Rh8 {[%emt 0:05:30]} 28. h4 {[%emt 0:02:00]} Rac8 {[%emt 0:00:30]} 29. Rc4 {[%emt 0:03:30]} Qh5 {[%emt 0:02:30]} 30. Qxh5 {[%emt 0:00:30]} gxh5 {[%emt 0:00:30]} 31. Kf2 {[%emt 0:00:30]} f5 {[%emt 0:05:30]} 32. Bd2 {[%emt 0:04:30]} Rc7 {[%emt 0:02:30]} 33. Rfc1 {[%emt 0:01:30]} Rhc8 {[%emt 0:00:00]} 34. b4 {[%emt 0:03:30]} a6 {[%emt 0:03:00]} 35. R4c2 {[%emt 0:02:30]} Kf6 {[%emt 0:01:30]} 36. Rg1 {[%emt 0:02:30]} Rh8 {[%emt 0:00:30]} 37. Rc4 {[%emt 0:01:30]} Kf7 {[%emt 0:02:30]} 38. Ke2 {[%emt 0:01:30]} Kf6 {[%emt 0:00:30]} 39. Rg5 {[%emt 0:01:36]} Rcc8 {[%emt 0:03:12]} 40. Rc1 {[%emt 0:00:36]} Ne7 {[%emt 0:00:55]} 41. Bc3 {[%emt 0:01:27]} Nd5 {[%emt 0:00:06]} 42. Bb2 {[%emt 0:02:35]} b5 {[%emt 0:02:07]} 43. a5 {[%emt 0:02:00]} Rh7 {[%emt 0:04:32]} 44. Ba3 {[%emt 0:00:44]} Rg7 {[%emt 0:01:55]} 45. Kf2 {[%emt 0:00:47]} Rxg5 {[%emt 0:01:32]} 46. fxg5+ {[%emt 0:03:21]} Kg6 {[%emt 0:00:05]} 47. Rb1 {[%emt 0:00:36]} Rf8 {[%emt 0:01:31]} 48. Bc1 {[%emt 0:00:54]} f4 {[%emt 0:03:41]} 49. exf4 {[%emt 0:00:30]} Nxf4 {[%emt 0:00:00]} 50. Bxf4 {[%emt 0:05:09]} Rxf4+ {[%emt 0:00:00]} 51. Ke3 {[%emt 0:02:23]} Rxh4 {[%emt 0:00:24]} 52. Rc1 {[%emt 0:00:07]} Kxg5 {[%emt 0:01:23]} 53. Rc5+ {[%emt 0:00:30]} Kg4 {[%emt 0:00:00]} 54. Rxc6 {[%emt 0:00:15]} Rh1 {[%emt 0:03:11]} 55. Rxa6 {[%emt 0:02:38]} Re1+ {[%emt 0:00:34]} 56. Kf2 {[%emt 0:01:56]} Rb1 {[%emt 0:00:30]} 57. Ra8 {[%emt 0:00:06]} Rb2+ {[%emt 0:03:58]} 58. Ke3 {[%emt 0:00:19]} Rb3+ {[%emt 0:00:31]} 59. Kxe4 {[%emt 0:00:30]} Rxb4 {[%emt 0:00:00]} 60. a6 {[%emt 0:00:38]} Ra4 {[%emt 0:00:08]} 61. a7 {[%emt 0:00:30]} Kh3 {[%emt 0:00:00]} 62. Rh8 {[%emt 0:00:11]} Rxa7 {[%emt 0:00:19]} 63. Rxh5+ {[%emt 0:00:30]} Kg4 {[%emt 0:00:30]} 64. Rxb5 {[%emt 0:00:00]} Rd7 {[%emt 0:00:42]} 65. Re5 {[%emt 0:00:42]} Ra7 {[%emt 0:00:20]} 66. Re6 {[%emt 0:00:45]} Kg5 {[%emt 0:01:03]} 67. Ke5 {[%emt 0:00:30]} Ra1 {[%emt 0:00:00]} 68. d5 {[%emt 0:00:15]} Rd1 {[%emt 0:00:28]} 69. Re7 {[%emt 0:01:03]} Kg6 {[%emt 0:00:30]} 70. Ke6 {[%emt 0:00:00]} Re1+ {[%emt 0:00:26]} 71. Kd7 {[%emt 0:00:26]} Rd1 {[%emt 0:00:30]} 72. d6 {[%emt 0:00:00]} Kf6 {[%emt 0:00:00]} 73. Re8 {[%emt 0:00:25]} Kf7 {[%emt 0:00:19]} 74. Rc8 {[%emt 0:00:22]} Rd2 {[%emt 0:00:51]} 75. Rc6 {[%emt 0:00:53]} Rd1 {[%emt 0:00:43]} 76. Kd8 {[%emt 0:01:09]} Ra1 {[%emt 0:01:54]} 77. Kd7 {[%emt 0:01:08]} Ra7+ {[%emt 0:01:12]} 78. Rc7 {[%emt 0:00:16]} Ra6 {[%emt 0:00:09]} 79. Rc6 {[%emt 0:01:05]} Ra7+ {[%emt 0:00:06]} 80. Kc8 {[%emt 0:00:36]} Ke8 {[%emt 0:00:51]} 81. Rc7 {[%emt 0:00:05]} Ra8+ {[%emt 0:00:08]} 82. Kb7 {[%emt 0:00:02]} Rd8 {[%emt 0:01:13]} 83. Rc8 {[%emt 0:00:09]} Kd7 {[%emt 0:00:09]} 84. Rxd8+ {[%emt 0:01:12]} Kxd8 {[%emt 0:00:30]} 85. Kc6 {[%emt 0:00:30]} Kc8 {[%emt 0:00:30]} 86. Kc5 {[%emt 0:00:30]} Kd7 {[%emt 0:00:30]} 87. Kd5 {[%emt 0:00:30]} Kd8 {[%emt 0:00:00]} 1/2-1/2

[Event "FIDE World Cadets GU12 2022"]
[Site "Batumi"]
[Date "2022.09.24"]
[Round "8.7"]
[White "Abramkina, Veranika"]
[Black "Saparya Ghosh"]
[Result "1-0"]
[ECO "D30"]
[WhiteElo "1445"]
[BlackElo "1563"]
[Annotator "NA RC COMBH"]
[PlyCount "171"]
[EventDate "2022.09.16"]
[EventType "swiss"]
[EventCountry "GEO"]
[SourceTitle "playchess.com"]
[Source "ChessBase"]
[SourceQuality "1"]
[TimeControl "5400+30"]

1. c4 {[%emt 0:01:00]} e6 {[%emt 0:01:00]} 2. Nf3 {[%emt 0:00:30]} d5 {[%emt 0:00:30]} 3. e3 {[%emt 0:00:00]} Nf6 {[%emt 0:00:30]} 4. b3 {[%emt 0:00:00]} Be7 {[%emt 0:01:30]} 5. Bb2 {[%emt 0:00:00]} O-O {[%emt 0:01:30]} 6. d4 {[%emt 0:00:00]} Nbd7 {[%emt 0:01:30]} 7. Bd3 {[%emt 0:01:30]} b6 {[%emt 0:01:30]} 8. O-O {[%emt 0:01:30]} Bb7 {[%emt 0:00:30]} 9. Nbd2 {[%emt 0:03:30]} c5 {[%emt 0:07:30]} 10. Qe2 {[%emt 0:08:30]} dxc4 {[%emt 0:11:30]} 11. bxc4 {[%emt 0:00:30]} cxd4 {[%emt 0:02:30]} 12. exd4 {[%emt 0:00:30]} Rc8 {[%emt 0:00:30]} 13. Rac1 {[%emt 0:01:30]} Nb8 {[%emt 0:01:30]} 14. Rfd1 {[%emt 0:10:30]} Nc6 {[%emt 0:01:30]} 15. Bb1 {[%emt 0:04:30]} Na5 {[%emt 0:02:30]} 16. Ne5 {[%emt 0:04:30]} Rc7 {[%emt 0:03:30]} 17. Nb3 {[%emt 0:14:30]} Nxb3 {[%emt 0:12:30]} 18. axb3 {[%emt 0:00:30]} Qa8 {[%emt 0:00:30]} 19. f3 {[%emt 0:01:30]} Bb4 {[%emt 0:02:30]} 20. Qc2 {[%emt 0:04:30]} g6 {[%emt 0:02:30]} 21. Qf2 {[%emt 0:01:30]} Be7 {[%emt 0:00:30]} 22. Bc3 {[%emt 0:04:30]} Re8 {[%emt 0:09:30]} 23. Bd2 {[%emt 0:01:30]} Bf8 {[%emt 0:00:30]} 24. Bg5 {[%emt 0:02:30]} Bg7 {[%emt 0:00:30]} 25. Qh4 {[%emt 0:00:30]} Nd7 {[%emt 0:00:30]} 26. Ng4 {[%emt 0:01:30]} f5 {[%emt 0:18:44]} 27. Nf6+ {[%emt 0:05:30]} Nxf6 {[%emt 0:00:30]} 28. Bxf6 {[%emt 0:00:30]} Bxf6 {[%emt 0:00:40]} 29. Qxf6 {[%emt 0:00:30]} Rf7 {[%emt 0:02:12]} 30. Qe5 {[%emt 0:00:00]} Qb8 {[%emt 0:00:08]} 31. Re1 {[%emt 0:02:00]} Qxe5 {[%emt 0:01:54]} 32. Rxe5 {[%emt 0:00:30]} Rd8 {[%emt 0:00:00]} 33. Rxe6 {[%emt 0:08:12]} Rxd4 {[%emt 0:00:04]} 34. b4 {[%emt 0:00:45]} Rfd7 {[%emt 0:05:34]} 35. Kf2 {[%emt 0:01:36]} Kf7 {[%emt 0:00:49]} 36. Re2 {[%emt 0:03:36]} Kf6 {[%emt 0:01:42]} 37. Ba2 {[%emt 0:02:32]} Rc7 {[%emt 0:01:25]} 38. c5 {[%emt 0:00:26]} Rxb4 {[%emt 0:01:36]} 39. Re6+ {[%emt 0:03:59]} Kg5 {[%emt 0:03:02]} 40. Kg3 {[%emt 0:00:36]} f4+ {[%emt 0:00:40]} 41. Kf2 {[%emt 0:01:00]} Rb2+ {[%emt 0:00:25]} 42. Re2 {[%emt 0:00:21]} Rxe2+ {[%emt 0:00:30]} 43. Kxe2 {[%emt 0:00:00]} Ba6+ {[%emt 0:00:35]} 44. Kd2 {[%emt 0:00:48]} Rxc5 {[%emt 0:01:16]} 45. Re1 {[%emt 0:00:28]} Bc4 {[%emt 0:01:02]} 46. Bb1 {[%emt 0:00:23]} Rc7 {[%emt 0:00:22]} 47. Re5+ {[%emt 0:00:30]} Kf6 {[%emt 0:00:30]} 48. Re4 {[%emt 0:00:02]} g5 {[%emt 0:00:00]} 49. Rd4 {[%emt 0:01:23]} b5 {[%emt 0:00:41]} 50. g3 {[%emt 0:00:49]} fxg3 {[%emt 0:00:36]} 51. hxg3 {[%emt 0:00:01]} Be6 {[%emt 0:00:45]} 52. Bd3 {[%emt 0:00:17]} Bc4 {[%emt 0:01:13]} 53. Be4 {[%emt 0:00:30]} a5 {[%emt 0:00:00]} 54. f4 {[%emt 0:00:15]} gxf4 {[%emt 0:00:30]} 55. gxf4 {[%emt 0:00:00]} Be6 {[%emt 0:00:36]} 56. Rd6 {[%emt 0:00:04]} Rc4 {[%emt 0:00:44]} 57. Kd3 {[%emt 0:01:32]} Ke7 {[%emt 0:01:07]} 58. Rb6 {[%emt 0:00:30]} Rb4 {[%emt 0:00:04]} 59. f5 {[%emt 0:02:28]} Bc4+ {[%emt 0:00:06]} 60. Kd4 {[%emt 0:00:20]} Bf7+ {[%emt 0:01:11]} 61. Ke5 {[%emt 0:00:03]} Rb2 {[%emt 0:00:42]} 62. Rb7+ {[%emt 0:00:30]} Ke8 {[%emt 0:00:00]} 63. Bc6+ {[%emt 0:00:39]} Kf8 {[%emt 0:00:00]} 64. Kf6 {[%emt 0:01:12]} Be8 {[%emt 0:00:21]} 65. Rb8 {[%emt 0:00:19]} Re2 {[%emt 0:00:30]} 66. Bxe8 {[%emt 0:00:30]} Rxe8 {[%emt 0:00:00]} 67. Rxe8+ {[%emt 0:00:00]} Kxe8 {[%emt 0:00:30]} 68. Kg7 {[%emt 0:00:00]} b4 {[%emt 0:00:49]} 69. f6 {[%emt 0:00:00]} Kd7 {[%emt 0:00:30]} 70. f7 {[%emt 0:00:00]} Kc6 {[%emt 0:00:38]} 71. f8=Q {[%emt 0:00:04]} Kb5 {[%emt 0:00:00]} 72. Kxh7 {[%emt 0:02:10]} a4 {[%emt 0:00:00]} 73. Qf1+ {[%emt 0:01:11]} Kc5 {[%emt 0:00:05]} 74. Qc1+ {[%emt 0:00:44]} Kb5 {[%emt 0:00:19]} 75. Qc2 {[%emt 0:00:06]} b3 {[%emt 0:01:11]} 76. Qc3 {[%emt 0:00:07]} Ka6 {[%emt 0:00:37]} 77. Qb4 {[%emt 0:00:30]} b2 {[%emt 0:00:07]} 78. Qxa4+ {[%emt 0:00:00]} Kb6 {[%emt 0:00:31]} 79. Qb3+ {[%emt 0:00:12]} Ka5 {[%emt 0:00:30]} 80. Qxb2 {[%emt 0:00:30]} Ka6 {[%emt 0:00:30]} 81. Kg6 {[%emt 0:00:30]} Ka7 {[%emt 0:00:30]} 82. Qb5 {[%emt 0:00:30]} Ka8 {[%emt 0:00:00]} 83. Kf6 {[%emt 0:00:00]} Ka7 {[%emt 0:00:00]} 84. Ke7 {[%emt 0:00:00]} Ka8 {[%emt 0:00:00]} 85. Kd7 {[%emt 0:00:00]} Ka7 {[%emt 0:00:00]} 86. Kc7 {[%emt 0:00:00]} 1-0

[Event "FIDE World Cadets GU12 2022"]
[Site "Batumi"]
[Date "2022.09.24"]
[Round "8.8"]
[White "Alfano, Emilie"]
[Black "Sezdbekova, Aizhan"]
[Result "0-1"]
[ECO "C29"]
[WhiteElo "1712"]
[BlackElo "1447"]
[Annotator "NA RC COMBH"]
[PlyCount "140"]
[EventDate "2022.09.16"]
[EventType "swiss"]
[EventCountry "GEO"]
[SourceTitle "playchess.com"]
[Source "ChessBase"]
[SourceQuality "1"]
[TimeControl "5400+30"]

1. e4 {[%emt 0:01:00]} e5 {[%emt 0:01:00]} 2. Nc3 {[%emt 0:00:00]} Nf6 {[%emt 0:05:30]} 3. f4 {[%emt 0:00:00]} d5 {[%emt 0:03:30]} 4. fxe5 {[%emt 0:00:30]} Nxe4 {[%emt 0:01:30]} 5. Qf3 {[%emt 0:00:30]} Nxc3 {[%emt 0:08:30]} 6. dxc3 {[%emt 0:00:30]} Bc5 {[%emt 0:04:30]} 7. Bf4 {[%emt 0:01:30]} Be6 {[%emt 0:01:30]} 8. Qg3 {[%emt 0:02:30]} g6 {[%emt 0:11:30]} 9. Nf3 {[%emt 0:07:30]} c6 {[%emt 0:08:30]} 10. Bd3 {[%emt 0:07:30]} Qb6 {[%emt 0:05:30]} 11. b4 {[%emt 0:06:30]} Be3 {[%emt 0:07:30]} 12. Ng5 {[%emt 0:00:30]} Bxf4 {[%emt 0:00:30]} 13. Qxf4 {[%emt 0:00:30]} Nd7 {[%emt 0:01:30]} 14. Rf1 {[%emt 0:00:30]} O-O-O {[%emt 0:02:30]} 15. O-O-O {[%emt 0:08:30]} Rdf8 {[%emt 0:08:30]} 16. Rfe1 {[%emt 0:04:30]} c5 {[%emt 0:06:30]} 17. a4 {[%emt 0:08:30]} a5 {[%emt 0:05:15]} 18. Bb5 {[%emt 0:01:30]} Nb8 {[%emt 0:07:27]} 19. Qe3 {[%emt 0:00:30]} axb4 {[%emt 0:01:37]} 20. cxb4 {[%emt 0:01:30]} h6 {[%emt 0:02:35]} 21. Nxe6 {[%emt 0:01:30]} fxe6 {[%emt 0:00:30]} 22. bxc5 {[%emt 0:00:00]} Qc7 {[%emt 0:01:25]} 23. Qh3 {[%emt 0:00:00]} Rf5 {[%emt 0:00:29]} 24. Bd3 {[%emt 0:11:30]} Rxe5 {[%emt 0:00:23]} 25. Qg3 {[%emt 0:06:30]} Rxe1 {[%emt 0:00:20]} 26. Qxc7+ {[%emt 0:04:30]} Kxc7 {[%emt 0:00:35]} 27. Rxe1 {[%emt 0:00:30]} Kd7 {[%emt 0:00:08]} 28. Rf1 {[%emt 0:01:30]} Rh7 {[%emt 0:04:29]} 29. Rf8 {[%emt 0:01:30]} Nc6 {[%emt 0:00:40]} 30. Rf6 {[%emt 0:08:54]} Ne5 {[%emt 0:00:32]} 31. Bxg6 {[%emt 0:03:33]} Rg7 {[%emt 0:00:30]} 32. Bh5 {[%emt 0:00:30]} Rxg2 {[%emt 0:00:30]} 33. Rxh6 {[%emt 0:00:00]} Nc4 {[%emt 0:00:00]} 34. Kb1 {[%emt 0:00:45]} Na3+ {[%emt 0:00:00]} 35. Kb2 {[%emt 0:01:17]} Nxc2 {[%emt 0:00:30]} 36. Kc3 {[%emt 0:00:00]} d4+ {[%emt 0:01:05]} 37. Kc4 {[%emt 0:00:01]} Ne3+ {[%emt 0:00:08]} 38. Kd3 {[%emt 0:01:17]} e5 {[%emt 0:01:18]} 39. Bf3 {[%emt 0:01:00]} Rb2 {[%emt 0:00:43]} 40. Rh7+ {[%emt 0:00:30]} Kc8 {[%emt 0:00:00]} 41. Be4 {[%emt 0:02:41]} Rb3+ {[%emt 0:00:21]} 42. Ke2 {[%emt 0:00:00]} Rb2+ {[%emt 0:00:06]} 43. Kd3 {[%emt 0:01:39]} Rb3+ {[%emt 0:00:20]} 44. Kd2 {[%emt 0:00:04]} Nc4+ {[%emt 0:00:30]} 45. Kc2 {[%emt 0:00:26]} Rc3+ {[%emt 0:00:17]} 46. Kd1 {[%emt 0:00:18]} Nb2+ {[%emt 0:00:29]} 47. Kd2 {[%emt 0:00:15]} Nc4+ {[%emt 0:00:30]} 48. Kd1 {[%emt 0:00:08]} d3 {[%emt 0:01:44]} 49. Rh8+ {[%emt 0:06:26]} Kc7 {[%emt 0:00:30]} 50. Rh7+ {[%emt 0:00:00]} Kc8 {[%emt 0:00:24]} 51. Rh8+ {[%emt 0:02:13]} Kd7 {[%emt 0:00:40]} 52. Rh7+ {[%emt 0:00:09]} Ke6 {[%emt 0:00:07]} 53. Rh6+ {[%emt 0:01:59]} Ke7 {[%emt 0:00:12]} 54. Rh7+ {[%emt 0:00:34]} Kf6 {[%emt 0:00:30]} 55. h4 {[%emt 0:00:02]} d2 {[%emt 0:00:25]} 56. Rh6+ {[%emt 0:01:26]} Ke7 {[%emt 0:00:28]} 57. Rh7+ {[%emt 0:00:17]} Kf8 {[%emt 0:00:10]} 58. Rh8+ {[%emt 0:00:35]} Kg7 {[%emt 0:00:30]} 59. Rh7+ {[%emt 0:00:30]} Kg8 {[%emt 0:00:00]} 60. Rd7 {[%emt 0:00:00]} Rc1+ {[%emt 0:00:39]} 61. Ke2 {[%emt 0:00:22]} Re1+ {[%emt 0:00:00]} 62. Kf2 {[%emt 0:00:32]} Rxe4 {[%emt 0:00:28]} 63. h5 {[%emt 0:00:30]} Rh4 {[%emt 0:00:01]} 64. Rd8+ {[%emt 0:00:14]} Kf7 {[%emt 0:00:55]} 65. Rd7+ {[%emt 0:00:21]} Ke6 {[%emt 0:00:00]} 66. Rd3 {[%emt 0:00:38]} Rxh5 {[%emt 0:00:00]} 67. a5 {[%emt 0:00:32]} Nxa5 {[%emt 0:00:16]} 68. Rd6+ {[%emt 0:00:20]} Ke7 {[%emt 0:00:30]} 69. Ke2 {[%emt 0:00:30]} Rh2+ {[%emt 0:00:30]} 70. Kd1 {[%emt 0:00:00]} Nc4 {[%emt 0:00:00]} 0-1

[Event "FIDE World Cadets GU12 2022"]
[Site "Batumi"]
[Date "2022.09.24"]
[Round "8.9"]
[White "Altynbek, Aiaru"]
[Black "Beber, Anja"]
[Result "0-1"]
[ECO "A43"]
[WhiteElo "1373"]
[BlackElo "1674"]
[Annotator "NA RC COMBH"]
[PlyCount "104"]
[EventDate "2022.09.16"]
[EventType "swiss"]
[EventCountry "GEO"]
[SourceTitle "playchess.com"]
[Source "ChessBase"]
[SourceQuality "1"]
[TimeControl "5400+30"]

1. d4 {[%emt 0:01:00]} c5 {[%emt 0:01:00]} 2. d5 {[%emt 0:00:30]} g6 {[%emt 0:00:30]} 3. Nf3 {[%emt 0:00:30]} f5 {[%emt 0:00:00]} 4. Bf4 {[%emt 0:05:30]} Bg7 {[%emt 0:01:00]} 5. c3 {[%emt 0:01:30]} Qb6 {[%emt 0:01:30]} 6. Qd2 {[%emt 0:02:30]} Nf6 {[%emt 0:00:30]} 7. Na3 {[%emt 0:02:30]} Nxd5 {[%emt 0:08:30]} 8. Nc4 {[%emt 0:04:30]} Qe6 {[%emt 0:00:30]} 9. Ng5 {[%emt 0:03:30]} Qg8 {[%emt 0:00:30]} 10. Be5 {[%emt 0:06:30]} Nf6 {[%emt 0:00:30]} 11. Na3 {[%emt 0:07:30]} a6 {[%emt 0:02:30]} 12. e3 {[%emt 0:08:30]} b5 {[%emt 0:00:00]} 13. Bd3 {[%emt 0:15:30]} Nc6 {[%emt 0:01:00]} 14. Bg3 {[%emt 0:01:30]} Qd5 {[%emt 0:00:30]} 15. c4 {[%emt 0:05:30]} Qxg2 {[%emt 0:04:30]} 16. Ke2 {[%emt 0:01:30]} Nb4 {[%emt 0:00:30]} 17. cxb5 {[%emt 0:03:30]} Qd5 {[%emt 0:03:30]} 18. Bc4 {[%emt 0:07:30]} Qxd2+ {[%emt 0:00:30]} 19. Kxd2 {[%emt 0:00:30]} d5 {[%emt 0:01:30]} 20. Be2 {[%emt 0:00:00]} h6 {[%emt 0:00:00]} 21. Nf3 {[%emt 0:01:16]} Ne4+ {[%emt 0:00:00]} 22. Kc1 {[%emt 0:00:33]} Nxg3 {[%emt 0:00:30]} 23. hxg3 {[%emt 0:00:11]} Bb7 {[%emt 0:03:30]} 24. Rd1 {[%emt 0:01:51]} e6 {[%emt 0:03:30]} 25. bxa6 {[%emt 0:01:43]} Bxa6 {[%emt 0:00:30]} 26. Nb5 {[%emt 0:00:34]} Kd7 {[%emt 0:00:30]} 27. a3 {[%emt 0:04:13]} Nc6 {[%emt 0:00:30]} 28. a4 {[%emt 0:02:01]} Rhb8 {[%emt 0:00:30]} 29. Ra3 {[%emt 0:00:00]} Na7 {[%emt 0:01:30]} 30. Nh4 {[%emt 0:04:28]} g5 {[%emt 0:00:30]} 31. Ng6 {[%emt 0:00:30]} Rb6 {[%emt 0:03:30]} 32. f4 {[%emt 0:00:49]} Nc6 {[%emt 0:05:30]} 33. g4 {[%emt 0:00:44]} fxg4 {[%emt 0:02:30]} 34. Bxg4 {[%emt 0:00:58]} c4 {[%emt 0:00:30]} 35. Rxd5+ {[%emt 0:00:00]} Kc8 {[%emt 0:00:30]} 36. Bxe6+ {[%emt 0:00:23]} Kb8 {[%emt 0:00:30]} 37. Rd7 {[%emt 0:01:05]} Bxb2+ {[%emt 0:01:30]} 38. Kxb2 {[%emt 0:01:34]} Bxb5 {[%emt 0:03:30]} 39. Kc3 {[%emt 0:00:11]} Rxa4 {[%emt 0:02:30]} 40. Rxa4 {[%emt 0:00:30]} Bxa4 {[%emt 0:00:30]} 41. f5 {[%emt 0:00:30]} Rb3+ {[%emt 0:00:30]} 42. Kd2 {[%emt 0:04:40]} Rb2+ {[%emt 0:00:30]} 43. Kc1 {[%emt 0:00:50]} c3 {[%emt 0:00:30]} 44. Rd3 {[%emt 0:01:12]} Rc2+ {[%emt 0:00:30]} 45. Kb1 {[%emt 0:00:34]} Nb4 {[%emt 0:00:00]} 46. Ne5 {[%emt 0:01:20]} Rb2+ {[%emt 0:01:00]} 47. Kc1 {[%emt 0:00:04]} Nxd3+ {[%emt 0:00:30]} 48. Nxd3 {[%emt 0:00:30]} Rd2 {[%emt 0:00:30]} 49. Kb1 {[%emt 0:01:07]} Rxd3 {[%emt 0:00:30]} 50. f6 {[%emt 0:00:24]} Rd1+ {[%emt 0:00:30]} 51. Ka2 {[%emt 0:00:02]} c2 {[%emt 0:00:30]} 52. f7 {[%emt 0:00:30]} Rf1 {[%emt 0:00:30]} 0-1

[Event "FIDE World Cadets GU12 2022"]
[Site "Batumi"]
[Date "2022.09.24"]
[Round "8.12"]
[White "Kiss, Inez"]
[Black "Zarkym, Ailin"]
[Result "0-1"]
[ECO "C04"]
[WhiteElo "1544"]
[BlackElo "1376"]
[Annotator "NA RC COMBH"]
[PlyCount "46"]
[EventDate "2022.09.16"]
[EventType "swiss"]
[EventCountry "GEO"]
[SourceTitle "playchess.com"]
[Source "ChessBase"]
[SourceQuality "1"]
[TimeControl "5400+30"]

1. e4 {[%emt 0:01:00]} e6 {[%emt 0:06:00]} 2. d4 {[%emt 0:00:30]} d5 {[%emt 0:00:30]} 3. Nd2 {[%emt 0:00:00]} Nc6 {[%emt 0:00:00]} 4. Ngf3 {[%emt 0:00:00]} Nf6 {[%emt 0:00:00]} 5. e5 {[%emt 0:00:30]} Nd7 {[%emt 0:00:00]} 6. c3 {[%emt 0:00:00]} f6 {[%emt 0:00:00]} 7. exf6 {[%emt 0:00:00]} Qxf6 {[%emt 0:00:00]} 8. Bd3 {[%emt 0:00:30]} Bd6 {[%emt 0:00:00]} 9. O-O {[%emt 0:00:30]} O-O {[%emt 0:00:00]} 10. Re1 {[%emt 0:00:30]} e5 {[%emt 0:00:00]} 11. Qb3 {[%emt 0:10:30]} Qf7 {[%emt 0:00:30]} 12. dxe5 {[%emt 0:06:30]} Ndxe5 {[%emt 0:00:30]} 13. Bxh7+ {[%emt 0:02:30]} Kh8 {[%emt 0:00:30]} 14. Bc2 {[%emt 0:06:30]} Bg4 {[%emt 0:02:30]} 15. Bd1 {[%emt 0:03:30]} Nd3 {[%emt 0:00:30]} 16. Rf1 {[%emt 0:04:30]} Qh5 {[%emt 0:04:30]} 17. h3 {[%emt 0:00:30]} Bxh3 {[%emt 0:01:30]} 18. gxh3 {[%emt 0:07:30]} Nf4 {[%emt 0:00:30]} 19. Ne1 {[%emt 0:17:30]} Nxh3+ {[%emt 0:04:30]} 20. Kg2 {[%emt 0:00:30]} Nf4+ {[%emt 0:00:00]} 21. Kg1 {[%emt 0:01:30]} Qg5+ {[%emt 0:00:00]} 22. Kh1 {[%emt 0:03:30]} Qh4+ {[%emt 0:00:30]} 23. Kg1 {[%emt 0:04:30]} Ne2+ {[%emt 0:00:30]} 0-1

[Event "FIDE World Cadets GU12 2022"]
[Site "Batumi"]
[Date "2022.09.24"]
[Round "8.13"]
[White "Imomkuzieva, Nilufarkhon"]
[Black "Enkhuyanga Gantsolmon"]
[Result "1-0"]
[ECO "B07"]
[WhiteElo "1481"]
[BlackElo "1301"]
[Annotator "NA RC COMBH"]
[PlyCount "111"]
[EventDate "2022.09.16"]
[EventType "swiss"]
[EventCountry "GEO"]
[SourceTitle "playchess.com"]
[Source "ChessBase"]
[SourceQuality "1"]
[TimeControl "5400+30"]

1. e4 {[%emt 0:01:00]} d6 {[%emt 0:01:00]} 2. d4 {[%emt 0:00:30]} Nf6 {[%emt 0:00:30]} 3. Nc3 {[%emt 0:00:00]} g6 {[%emt 0:00:30]} 4. f3 {[%emt 0:00:00]} Bg7 {[%emt 0:00:30]} 5. Be3 {[%emt 0:00:00]} c6 {[%emt 0:00:30]} 6. Qd2 {[%emt 0:01:00]} Nbd7 {[%emt 0:00:30]} 7. h4 {[%emt 0:00:30]} h5 {[%emt 0:00:30]} 8. O-O-O {[%emt 0:05:30]} b5 {[%emt 0:01:30]} 9. d5 {[%emt 0:05:30]} b4 {[%emt 0:07:30]} 10. dxc6 {[%emt 0:07:30]} bxc3 {[%emt 0:00:30]} 11. cxd7+ {[%emt 0:00:30]} Nxd7 {[%emt 0:00:30]} 12. Qd5 {[%emt 0:06:30]} Rb8 {[%emt 0:08:30]} 13. Bc4 {[%emt 0:05:30]} O-O {[%emt 0:03:30]} 14. Bb3 {[%emt 0:03:30]} Ne5 {[%emt 0:26:30]} 15. bxc3 {[%emt 0:11:30]} Be6 {[%emt 0:01:30]} 16. Qd4 {[%emt 0:17:30]} Nxf3 {[%emt 0:07:30]} 17. Qa4 {[%emt 0:01:30]} Nxg1 {[%emt 0:02:30]} 18. Rdxg1 {[%emt 0:01:30]} Bd7 {[%emt 0:15:30]} 19. Qxa7 {[%emt 0:04:30]} Bxc3 {[%emt 0:01:38]} 20. Bh6 {[%emt 0:03:30]} Bg7 {[%emt 0:01:19]} 21. Bxg7 {[%emt 0:00:30]} Kxg7 {[%emt 0:00:30]} 22. Qd4+ {[%emt 0:00:00]} Kh7 {[%emt 0:01:20]} 23. Rf1 {[%emt 0:03:00]} Be6 {[%emt 0:03:11]} 24. e5 {[%emt 0:06:27]} Bxb3 {[%emt 0:03:18]} 25. axb3 {[%emt 0:00:14]} Qb6 {[%emt 0:01:01]} 26. Qxb6 {[%emt 0:01:00]} Rxb6 {[%emt 0:00:30]} 27. exd6 {[%emt 0:00:30]} Rxd6 {[%emt 0:00:00]} 28. Rd1 {[%emt 0:01:21]} Rfd8 {[%emt 0:01:42]} 29. b4 {[%emt 0:05:14]} Rc8 {[%emt 0:04:58]} 30. Rxd6 {[%emt 0:00:52]} exd6 {[%emt 0:00:30]} 31. Kb2 {[%emt 0:00:00]} Kg7 {[%emt 0:00:27]} 32. Kb3 {[%emt 0:00:13]} Kf6 {[%emt 0:00:52]} 33. c4 {[%emt 0:01:53]} Ke6 {[%emt 0:01:26]} 34. Re1+ {[%emt 0:00:42]} Kd7 {[%emt 0:00:28]} 35. b5 {[%emt 0:00:00]} Rc7 {[%emt 0:02:15]} 36. Kb4 {[%emt 0:01:23]} Kc8 {[%emt 0:02:12]} 37. Re8+ {[%emt 0:00:05]} Kb7 {[%emt 0:00:39]} 38. Rd8 {[%emt 0:00:07]} Re7 {[%emt 0:01:10]} 39. Rxd6 {[%emt 0:00:07]} Re2 {[%emt 0:00:25]} 40. Rd7+ {[%emt 0:00:59]} Kc8 {[%emt 0:00:30]} 41. Rxf7 {[%emt 0:00:30]} Rxg2 {[%emt 0:00:00]} 42. b6 {[%emt 0:00:00]} g5 {[%emt 0:00:18]} 43. hxg5 {[%emt 0:00:11]} Rxg5 {[%emt 0:00:20]} 44. c5 {[%emt 0:00:25]} Rg1 {[%emt 0:00:30]} 45. Kb5 {[%emt 0:00:23]} h4 {[%emt 0:00:39]} 46. Rh7 {[%emt 0:01:23]} Rg3 {[%emt 0:01:45]} 47. Rxh4 {[%emt 0:00:30]} Rg1 {[%emt 0:00:00]} 48. Rh7 {[%emt 0:00:28]} Rg2 {[%emt 0:00:23]} 49. c6 {[%emt 0:00:55]} Rb2+ {[%emt 0:00:30]} 50. Kc5 {[%emt 0:00:30]} Rc2+ {[%emt 0:00:30]} 51. Kd5 {[%emt 0:00:00]} Rd2+ {[%emt 0:00:04]} 52. Ke4 {[%emt 0:00:00]} Re2+ {[%emt 0:00:36]} 53. Kd3 {[%emt 0:00:00]} Re8 {[%emt 0:00:29]} 54. Ra7 {[%emt 0:00:00]} Kb8 {[%emt 0:00:41]} 55. c7+ {[%emt 0:00:11]} Kc8 {[%emt 0:00:30]} 56. Ra8+ {[%emt 0:00:00]} 1-0